[Event "ITT 1st Parada Jamundi 2022"]
[Site "Jamundi Valle"]
[Date "2022.12.07"]
[Round "3.8"]
[White "Mora Munoz, Alejandro"]
[Black "Rios, Cristhian Camilo"]
[Result "1/2-1/2"]
[ECO "B48"]
[WhiteElo "1959"]
[BlackElo "2456"]
[Annotator "TA"]
[PlyCount "84"]
[EventDate "2022.12.05"]
[EventType "swiss"]
[EventCountry "COL"]
[SourceTitle "playchess.com"]
[Source "ChessBase"]
[SourceQuality "1"]
[TimeControl "5400+30"]

{[%evp 11,84,20,34,6,18,0,26,6,79,74,61,27,62,21,20,19,48,44,72,72,100,67,68,71,64,78,98,110,112,88,109,112,138,136,270,218,225,208,253,144,162,98,330,322,328,295,900,901,876,837,819,498,493,495,485,482,471,449,414,356,494,480,583,529,527,401,401,389,425,270,244,211,235,0,1292]} 1. e4 {[%emt 0:05:46]} c5 {[%emt 0:00:34]} 2. Nf3 {[%emt 0:00:15]} Nc6 {[%emt 0:00:32]} 3. d4 {[%emt 0:00:12]} cxd4 {[%emt 0:00:43]} 4. Nxd4 {[%emt 0:00:17]} e6 {[%emt 0:00:37]} 5. Nc3 {[%emt 0:03:04]} Qc7 {[%emt 0:00:36]} 6. Be3 {[%emt 0:00:44]} a6 {[%emt 0:00:18]} 7. g4 $1 {[%emt 0:02:32][%mdl 4] 7.g4 is setting a new trend. B48: Sicilian: Taimanov: 5 Nc3 Qc7 6 Be3 a6 without Be2.} b5 {[%emt 0:04:03]} 8. Nxc6 {[%emt 0:00:12]} dxc6 {[%emt 0:00:50]} 9. f4 {[%emt 0:26:11][%cal Bf2f4,Bf4f5][%mdl 32] [#] White has an edge.} e5 $146 {[%emt 0:02:29] [#]} (9... Bb7 $11 {remains equal.}) ({Predecessor:} 9... Bb7 10. Bg2 Rd8 11. Qe2 Ne7 12. Qf2 Ng6 13. O-O c5 14. f5 Ne5 15. Bf4 Bd6 {0-1 (28) Samsonkin,A (2421)-Bosiocic,M (2536) Waterloo 2022}) 10. f5 $1 $16 {[%emt 0:01:45]} Bb7 {[%emt 0:03:29]} 11. Bg2 {[%emt 0:02:45]} Nf6 {[%emt 0:00:16]} 12. Qf3 {[%emt 0:07:47]} (12. g5 $5 {[%cal Rg5f6]} Nd7 13. Qh5 $14) 12... b4 {[%emt 0:09:53] Inhibits g5.} 13. Nd1 {[%emt 0:03:43][%cal Bc3d1,Bd1f2,Bf2d3][%mdl 32]} O-O-O {[%emt 0:08:18]} 14. Nf2 {[%emt 0:01:36]} Nd7 {[%emt 0:06:14]} 15. O-O {[%emt 0:03:58]} Bc5 {[%emt 0:00:29]} 16. Nd3 {[%emt 0:01:45]} Bxe3+ {[%emt 0:00:57]} 17. Qxe3 {[%emt 0:00:10]} c5 {[%emt 0:00:20]} 18. a3 {[%emt 0:01:01]} a5 {[%emt 0:02:47]} 19. axb4 {[%emt 0:00:09]} axb4 {[%emt 0:00:35]} 20. Rfc1 {[%emt 0:06:12] White has more active pieces.} (20. Ra7 {keeps more tension.} h5 21. g5 f6 22. Rfa1) 20... Qb6 {[%emt 0:04:45]} 21. b3 {[%emt 0:02:11]} f6 {[%emt 0:01:46]} 22. Nb2 {[%emt 0:05:42]} Ba6 {[%emt 0:03:49]} (22... Qd6 $16) 23. Bf1 {[%emt 0:03:09]} Bxf1 24. Kxf1 {[%emt 0:01:49]} Qb5+ {[%emt 0:03:33]} 25. Kg1 {[%emt 0:00:18]} ({White should try} 25. c4 $18 Qc6 26. Ra5) 25... Nb6 {[%emt 0:00:17]} 26. c3 {[%emt 0:02:35]} (26. Ra7 $18 {[%cal Oc1a1] aiming for Rca1!} Rd7 27. Rca1 Rxa7 28. Rxa7) 26... Kb7 $2 {[%emt 0:01:01]} (26... Kb8 $16 {might work better.}) 27. cxb4 $18 {[%emt 0:00:47]} Qxb4 {[%emt 0:01:00]} 28. Nd3 {[%emt 0:01:38]} (28. Qxc5 Qd4+ 29. Kf1 Qxc5 30. Rxc5 Rd2 $14) (28. Rxc5 Qd4 29. Qxd4 Rxd4 $14) 28... Qd4 {[%emt 0:00:41]} (28... Rxd3 29. Qxd3 Qd4+ 30. Qxd4 cxd4) 29. Nxc5+ {[%emt 0:00:07]} Kb8 {[%emt 0:00:43]} 30. Na6+ {[%emt 0:00:33]} Ka8 {[%emt 0:00:05]} 31. Nb4+ {[%emt 0:01:15]} Kb7 {[%emt 0:00:07] [#]} 32. Ra7+ $3 {[%emt 0:00:53][%mdl 512]} Kxa7 {[%emt 0:00:06]} 33. Nc6+ {[%emt 0:00:01]} Kb7 {[%emt 0:00:09]} 34. Nxd4 {[%emt 0:00:06]} Rxd4 {[%emt 0:00:04]} 35. Ra1 {[%emt 0:01:37]} (35. Qc3 Rc8 36. Qe3 Rxc1+ 37. Qxc1 Rxe4 $18) 35... Rc8 {[%emt 0:00:44]} 36. Qe2 {[%emt 0:00:25] Inhibits Rc2. Black must now prevent Qa6+.} Rc3 {[%emt 0:00:35]} 37. Qa6+ {[%emt 0:03:22]} Kc6 {[%emt 0:00:05]} 38. Qa7 {[%emt 0:00:26]} Rd7 {[%emt 0:01:39]} 39. Qb8 {[%emt 0:00:34] Threatens to win with b4.} ({Weaker is} 39. Qa6 Rc2 40. Qf1 (40. b4 Rdd2 $16) 40... Rdd2 $18) 39... Rc2 {[%emt 0:00:40]} 40. Qe8 {[%emt 0:01:43]} Kb7 {[%emt 0:00:15]} 41. Qg8 {[%emt 0:01:46]} h6 {[%emt 0:00:05]} 42. h3 $2 {[%emt 0:10:29]} ({White should play} 42. b4 $18) 42... Kc7 $2 {[%emt 0:45:21][%mdl 40960] Weighted Error Value: White=0.50/Black=0.37. An unexpected result.} (42... Rdd2 $11) 1/2-1/2

[Event "ITT 1st Parada Jamundi 2022"]
[Site "Jamundi Valle"]
[Date "2022.12.07"]
[Round "3.9"]
[White "Mateus, Alejandro"]
[Black "Paredes Lagos, Anthony Javier"]
[Result "1/2-1/2"]
[ECO "C41"]
[WhiteElo "2308"]
[BlackElo "2230"]
[Annotator "TA"]
[PlyCount "63"]
[EventDate "2022.12.05"]
[EventType "swiss"]
[EventCountry "COL"]
[SourceTitle "playchess.com"]
[Source "ChessBase"]
[SourceQuality "1"]
[TimeControl "5400+30"]

{[%evp 18,63,47,36,49,39,39,28,35,35,31,28,31,1,11,0,0,0,0,0,0,0,0,0,33,35,29,33,33,0,0,0,0,-17,-12,-23,-12,-20,-10,-1,-10,-6,0,0,0,0,0,0]} 1. e4 {[%emt 0:04:27]} d6 {[%emt 0:16:16]} 2. d4 {[%emt 0:00:26]} Nf6 {[%emt 0:00:45]} 3. Nc3 {[%emt 0:00:09]} e5 {[%emt 0:00:56]} 4. Nf3 {[%emt 0:00:58]} Nbd7 {[%emt 0:00:06]} 5. Bc4 {[%emt 0:00:58]} Be7 {[%emt 0:00:05]} 6. O-O {[%emt 0:00:28]} O-O {[%emt 0:00:12]} 7. Re1 {[%emt 0:00:32]} c6 {[%emt 0:00:12]} 8. a4 {[%emt 0:01:49]} a5 {[%emt 0:01:46] 8...h6 is setting a new trend.} 9. Ba2 {[%emt 0:06:22]} Qc7 {[%emt 0:00:27]} 10. h3 {[%emt 0:00:51]} Re8 {[%emt 0:04:18] C41: Philidor Defence.} 11. Ng5 {[%emt 0:05:58]} Rf8 {[%emt 0:00:05]} 12. Be3 {[%emt 0:01:03]} exd4 {[%emt 0:04:08] White has an edge.} 13. Bxd4 {[%emt 0:01:15] f4 is the strong threat.} h6 {[%emt 0:01:05]} 14. Nf3 {[%emt 0:01:34]} Ne5 {[%emt 0:00:04]} 15. Nh4 {[%emt 0:09:21] [#]} Nh7 $146 {[%emt 0:01:19]} ({Predecessor:} 15... Ne8 16. Qh5 Nf6 17. Qe2 Ne8 18. Nf5 Bf6 19. g4 Bxf5 20. gxf5 Nf3+ 21. Qxf3 Bxd4 22. Rab1 Be5 {½-½ (22) Milos,G (2565)-Tempone,M (2460) Buenos Aires 1996}) 16. Nf3 {[%emt 0:23:35]} Bf6 {[%emt 0:07:23] [#] Hoping for ...Nxf3+.} 17. Nxe5 {[%emt 0:03:04]} dxe5 {[%emt 0:00:29]} 18. Be3 {[%emt 0:00:31]} Ng5 {[%emt 0:00:40]} 19. Qh5 {[%emt 0:04:07]} Qe7 {[%emt 0:06:54]} 20. Rad1 {[%emt 0:02:44]} Be6 {[%emt 0:02:25]} 21. h4 {[%emt 0:02:50]} Nh7 {[%emt 0:00:21]} (21... Nxe4 $2 22. Nxe4 g6 23. Qf3 $18) 22. Bxe6 Qxe6 {[%emt 0:00:15]} 23. Bc5 {[%emt 0:04:40]} Be7 {[%emt 0:01:20]} 24. Bxe7 Qxe7 {[%emt 0:00:04]} 25. Rd3 {[%emt 0:02:24]} Nf6 {[%emt 0:00:12]} 26. Qf5 {[%emt 0:00:44]} g6 {[%emt 0:00:44]} 27. Qf3 {[%emt 0:00:46] The position is equal.} Kg7 {[%emt 0:00:47]} 28. Red1 {[%emt 0:01:09]} Rfd8 {[%emt 0:00:20]} 29. g3 $1 {[%emt 0:02:58]} Rxd3 {[%emt 0:03:47]} 30. Qxd3 {[%emt 0:00:31]} Qb4 {[%emt 0:00:06]} 31. Kg2 {[%emt 0:02:41]} Re8 {[%emt 0:01:06]} 32. b3 {[%emt 0:02:44] Weighted Error Value: White=0.05 (flawless) /Black=0.03 (flawless)} 1/2-1/2

[Event "ITT 1st Parada Jamundi 2022"]
[Site "Jamundi Valle"]
[Date "2022.12.07"]
[Round "3.10"]
[White "Mogollon Tobar, Nicolle Julieth"]
[Black "Argote Heredia, Valentina"]
[Result "0-1"]
[ECO "B90"]
[WhiteElo "1840"]
[BlackElo "2140"]
[Annotator "TA"]
[PlyCount "67"]
[EventDate "2022.12.05"]
[EventType "swiss"]
[EventCountry "COL"]
[SourceTitle "playchess.com"]
[Source "ChessBase"]
[SourceQuality "1"]
[TimeControl "5400+30"]

{[%evp 16,67,21,27,46,32,39,31,31,41,43,35,51,54,40,41,42,50,87,94,87,37,80,80,68,36,83,85,83,18,25,18,25,0,0,2,4,0,44,18,25,25,25,25,25,25,27,25,27,27,43,43,46,43]} 1. e4 {[%emt 0:23:27] Ftacnik,Lubomir} c5 {[%emt 0:06:41]} 2. Nf3 {[%emt 0:00:07]} d6 {[%emt 0:16:09]} 3. d4 {[%emt 0:00:12]} cxd4 {[%emt 0:00:08]} 4. Nxd4 {[%emt 0:00:07]} Nf6 {[%emt 0:00:05]} 5. Nc3 {[%emt 0:00:07]} a6 {[%emt 0:00:03]} 6. f3 {[%emt 0:00:06]} e5 {[%emt 0:00:05]} 7. Nb3 {[%emt 0:00:05]} Be6 {[%emt 0:00:06]} 8. Be3 {[%emt 0:00:07]} Nbd7 {[%emt 0:00:10]} 9. g4 {[%emt 0:00:48]} h6 {[%emt 0:08:01] B90: Sicilian Najdorf: Unusual White 6th moves, 6 Be3 Ng4 and 6 Be3 e5.} 10. Qd2 $1 {[%emt 0:03:45]} b5 {[%emt 0:00:14]} 11. a4 {[%emt 0:04:35]} b4 {[%emt 0:00:07]} 12. Nd5 {[%emt 0:00:33]} Bxd5 {[%emt 0:01:42]} 13. exd5 {[%emt 0:00:03]} Nb6 {[%emt 0:00:54]} 14. Bxb6 {[%emt 0:03:06]} Qxb6 {[%emt 0:00:04]} 15. O-O-O {[%emt 0:00:44]} Be7 {[%emt 0:00:29][%cal Of6g4]} 16. Kb1 {[%emt 0:02:01]} Nd7 {[%emt 0:09:18]} 17. h4 {[%emt 0:04:48] Prevents Bg5.} g5 {[%emt 0:01:10] [#] Against f4} 18. h5 $146 {[%emt 0:04:45]} ({White should try} 18. a5 $16 Qb7 19. Bd3) ({Predecessor:} 18. Bd3 gxh4 19. f4 exf4 20. Rde1 f3 21. Rxh4 Ne5 22. Rxh6 Rxh6 23. Qxh6 Nxd3 24. cxd3 {1-0 (41) Stocek,J (2518)-Neverov,V (2569) Prerov 2001 CBM 087 [Ftacnik,Lubomir]}) 18... Nc5 {[%emt 0:03:12] [#]} 19. Nxc5 $1 {[%emt 0:02:04]} Qxc5 {[%emt 0:00:04]} 20. Bd3 {[%emt 0:06:59]} (20. Re1 {simplifies} Qa5 21. Re4 Qxa4 22. Rxb4 Qd7 23. Qc3) 20... Bf6 {[%emt 0:02:42]} (20... Qb6 $14 {is superior.}) 21. Rhe1 $16 {[%emt 0:03:03]} O-O {[%emt 0:04:32] [#]} 22. Qe2 {[%emt 0:05:38]} (22. Re4 $1 $16) 22... Rfc8 $11 {[%emt 0:00:20]} 23. Qe4 {[%emt 0:02:17] Hoping for Qh7+.} (23. Bxa6 $2 {is the wrong capture.} Rxa6 24. Qxa6 Qxc2+ 25. Ka1 e4 $19) 23... Kf8 {[%emt 0:01:17]} (23... Bg7 {simplifies} 24. Qe3 Rc7 25. Qxc5 Rxc5 26. Re4 a5) 24. Bf1 Qa5 {[%emt 0:01:57]} 25. Qf5 {[%emt 0:24:56]} Bg7 {[%emt 0:01:17]} 26. Qd7 {[%emt 0:02:55]} Qb6 {[%emt 0:04:06]} (26... Qc5 $5 {[%cal Rc5c2]} 27. Qf5 Qa5 $11) 27. Re4 {[%emt 0:04:43][%cal Oa4a5]} (27. a5 $5 {[%cal Ra5b6]} Qc5 28. Bd3 $14) 27... Rc5 {[%emt 0:06:02] Inhibits a5.} (27... Rc7 {is more complex.} 28. a5 b3 29. c3 Qxa5 30. Qa4 Qb6) 28. Rc4 {[%emt 0:01:54]} Rxc4 {[%emt 0:16:44]} 29. Bxc4 {[%emt 0:00:04]} a5 {[%emt 0:02:01]} 30. Bb5 {[%emt 0:00:54]} Bf6 {[%emt 0:01:49]} 31. Bc6 {[%emt 0:00:35]} Rd8 {[%emt 0:00:27]} 32. Qf5 {[%emt 0:00:14]} Bg7 {[%emt 0:01:47]} 33. Qe4 {[%emt 0:00:45]} Qc5 {[%emt 0:01:04]} 34. Re1 {[%emt 0:01:03][%mdl 32768] Weighted Error Value: White=0.09 (flawless) /Black=0.09 (flawless) . Loss on time!?} 0-1

[Event "ITT 1st Parada Jamundi 2022"]
[Site "Jamundi Valle"]
[Date "2022.12.07"]
[Round "3.11"]
[White "Valdes Martinez, Miguel A."]
[Black "Lopez Rayo, Santiago"]
[Result "1/2-1/2"]
[ECO "A48"]
[WhiteElo "2104"]
[BlackElo "2300"]
[Annotator "TA"]
[PlyCount "67"]
[EventDate "2022.12.05"]
[EventType "swiss"]
[EventCountry "COL"]
[SourceTitle "playchess.com"]
[Source "ChessBase"]
[SourceQuality "1"]
[TimeControl "5400+30"]

{[%evp 9,67,22,35,-19,6,-24,10,0,6,10,18,0,7,0,0,1,86,89,98,87,89,79,94,87,89,73,89,55,85,43,56,0,99,55,59,63,68,57,69,33,39,48,64,56,56,56,95,56,89,75,89,58,64,59,76,76,76,77,81,77]} 1. d4 {[%emt 0:00:30]} Nf6 {[%emt 0:04:37]} 2. Nf3 {[%emt 0:00:09]} g6 {[%emt 0:00:06]} 3. e3 {[%emt 0:00:07]} Bg7 {[%emt 0:00:10]} 4. Be2 {[%emt 0:00:22]} d6 {[%emt 0:00:08]} 5. O-O {[%emt 0:00:34]} O-O {[%emt 0:00:07]} 6. b4 {[%emt 0:00:02] A48: 1 d4 Nf6 2 Nf3 g6: Torre, London and Colle Systems.} (6. c4 $14) 6... c5 {[%emt 0:04:49]} 7. a3 {[%emt 0:07:25]} Nbd7 {[%emt 0:01:59]} 8. Bb2 {[%emt 0:00:21] The position is equal.} b6 {[%emt 0:05:50]} 9. c4 {[%emt 0:00:37]} Bb7 {[%emt 0:01:43]} 10. Nbd2 {[%emt 0:01:10]} Qc7 {[%emt 0:00:30] [#]} 11. bxc5 $146 {[%emt 0:04:24]} ({Predecessor:} 11. Rc1) 11... dxc5 {[%emt 0:09:42]} 12. d5 {[%emt 0:01:28]} e5 {[%emt 0:01:19]} (12... Rfe8 $11) 13. e4 $16 {[%emt 0:07:54]} Ne8 {[%emt 0:00:25]} 14. a4 {[%emt 0:01:55]} a5 {[%emt 0:03:13]} 15. Nb1 {[%emt 0:01:36]} Nd6 {[%emt 0:00:21]} 16. Qc2 {[%emt 0:01:05]} Ba6 {[%emt 0:01:23]} 17. Na3 {[%emt 0:01:47]} Rae8 {[%emt 0:00:40]} 18. Bd3 {[%emt 0:04:07]} Qd8 {[%emt 0:02:54]} 19. Rfe1 {[%emt 0:02:22]} f5 {[%emt 0:04:46]} 20. Rab1 {[%emt 0:04:21]} ({White should try} 20. Nd2 $14) 20... f4 {[%emt 0:10:36]} (20... fxe4 $11 {remains equal.} 21. Bxe4 Nf6) 21. Bc3 {[%emt 0:00:56]} g5 {[%emt 0:07:12]} 22. h3 {[%emt 0:04:57]} h5 {[%emt 0:01:13]} 23. Nh2 {[%emt 0:00:12] Inhibits g4. White is more active.} ({But not} 23. Nb5 Bxb5 24. axb5 (24. cxb5 g4 $17) 24... g4 $17) (23. Qe2 {is interesting.} g4 24. Nh2 g3 25. Nf3) 23... Rf6 {[%emt 0:02:11]} 24. Be2 {[%emt 0:01:36]} Rh6 {[%emt 0:01:29]} 25. f3 {[%emt 0:04:16]} Kf7 {[%emt 0:04:19]} 26. Rb3 {[%emt 0:02:08]} Rg8 {[%emt 0:01:32]} 27. Reb1 {[%emt 0:00:24]} Qc7 {[%emt 0:01:42]} 28. Kf2 {[%cal Bg1f2,Bf2e1,Be1d1,Bd1c1,Bc1b2,Bb2a2][%mdl 32]} Nc8 {[%emt 0:06:05]} 29. Ke1 {[%emt 0:07:12]} Qd6 {[%emt 0:00:36]} 30. Kd1 {[%emt 0:01:44]} Bf6 {[%emt 0:00:31]} 31. Kc1 {[%emt 0:00:59]} Bd8 {[%emt 0:00:08]} 32. Kb2 {[%emt 0:00:46] White is better.} Bc7 {[%emt 0:00:32]} 33. Ka2 {[%emt 0:00:29]} Nf6 {[%emt 0:02:49]} 34. Qb2 {[%emt 0:02:46] Weighted Error Value: White=0.16 (very precise) /Black=0.19 (very precise)} 1/2-1/2

[Event "ITT 1st Parada Jamundi 2022"]
[Site "Jamundi Valle"]
[Date "2022.12.07"]
[Round "3.12"]
[White "Lopez Rayo, Isabella"]
[Black "Pazos Gambarrotti, Plinio"]
[Result "1-0"]
[ECO "C04"]
[WhiteElo "1898"]
[BlackElo "2083"]
[Annotator "NA RC"]
[PlyCount "111"]
[EventDate "2022.12.05"]
[EventType "swiss"]
[EventCountry "COL"]
[SourceTitle "playchess.com"]
[Source "ChessBase"]
[SourceQuality "1"]
[TimeControl "5400+30"]

1. e4 {[%emt 0:21:48]} e6 {[%emt 0:00:27]} 2. d4 {[%emt 0:00:30]} d5 {[%emt 0:00:03]} 3. Nd2 {[%emt 0:00:22]} Nc6 {[%emt 0:00:06]} 4. Ngf3 {[%emt 0:00:46]} Nf6 {[%emt 0:00:06]} 5. e5 {[%emt 0:00:08]} Nd7 {[%emt 0:00:02]} 6. Nb3 {[%emt 0:00:09]} f6 {[%emt 0:00:11]} 7. Bb5 {[%emt 0:04:29]} Be7 {[%emt 0:00:41]} 8. O-O {[%emt 0:02:01]} O-O {[%emt 0:00:15]} 9. c3 {[%emt 0:06:03]} fxe5 {[%emt 0:01:09]} 10. Bxc6 {[%emt 0:00:26]} bxc6 {[%emt 0:00:19]} 11. Nxe5 {[%emt 0:02:25]} Qe8 {[%emt 0:06:54]} 12. Be3 {[%emt 0:09:48]} Nf6 {[%emt 0:02:24]} 13. Na5 {[%emt 0:04:53]} Rb8 {[%emt 0:02:50]} 14. Rb1 {[%emt 0:16:01]} Rb6 {[%emt 0:04:33]} 15. Qa4 {[%emt 0:03:39]} Bd6 {[%emt 0:01:13]} 16. f3 {[%emt 0:01:30]} Nd7 {[%emt 0:02:00]} 17. Qc2 {[%emt 0:05:16]} Ba6 {[%emt 0:01:26]} 18. Rfe1 {[%emt 0:02:40]} Bxe5 {[%emt 0:06:11]} 19. dxe5 {[%emt 0:00:18]} Rb5 {[%emt 0:00:53]} 20. Nxc6 {[%emt 0:00:49]} Rb7 {[%emt 0:01:30]} 21. f4 {[%emt 0:03:17]} Nb6 {[%emt 0:00:36]} 22. Na5 {[%emt 0:02:44]} Rb8 {[%emt 0:00:12]} 23. Nb3 {[%emt 0:00:48]} Bc4 {[%emt 0:00:57]} 24. Nd2 {[%emt 0:00:50]} Qb5 {[%emt 0:01:43]} 25. Rbc1 {[%emt 0:03:31]} Bxa2 {[%emt 0:01:02]} 26. b3 {[%emt 0:01:07]} Bxb3 27. Nxb3 {[%emt 0:01:22]} Nc4 {[%emt 0:00:23]} 28. Nd4 {[%emt 0:00:27]} Qb6 29. Qf2 {[%emt 0:02:36]} Nxe5 {[%emt 0:02:02]} 30. Nf5 {[%emt 0:03:08]} Qb5 {[%emt 0:00:25]} 31. fxe5 {[%emt 0:01:34]} Rxf5 {[%emt 0:00:03]} 32. Qg3 {[%emt 0:00:30]} c5 {[%emt 0:00:01]} 33. h4 {[%emt 0:00:14]} Rbf8 {[%emt 0:00:30]} 34. Kh2 {[%emt 0:00:42]} Qc4 {[%emt 0:00:17]} 35. Ra1 {[%emt 0:00:37]} R8f7 {[%emt 0:00:13]} 36. Bg5 {[%emt 0:00:29]} Kh8 {[%emt 0:00:28]} 37. Reb1 {[%emt 0:00:25]} h6 {[%emt 0:01:00]} 38. Rb8+ {[%emt 0:00:30]} Kh7 {[%emt 0:00:05]} 39. Bxh6 {[%emt 0:00:35]} Qe4 {[%emt 0:00:50]} 40. Re1 {[%emt 0:00:29]} Qc2 {[%emt 0:00:35]} 41. Bg5 {[%emt 0:00:28]} d4 {[%emt 0:00:11]} 42. Qg4 {[%emt 0:00:29]} Rf8 {[%emt 0:00:29]} 43. Rxf8 {[%emt 0:00:30]} Rxf8 {[%emt 0:00:02]} 44. cxd4 {[%emt 0:00:23]} Rf5 {[%emt 0:00:33]} 45. Qh5+ {[%emt 0:00:30]} Kg8 {[%emt 0:00:02]} 46. Qe8+ {[%emt 0:00:33]} Kh7 {[%emt 0:00:02]} 47. dxc5 {[%emt 0:00:34]} Qf2 {[%emt 0:00:14]} 48. Qh5+ {[%emt 0:00:28]} Kg8 {[%emt 0:00:02]} 49. Rd1 {[%emt 0:00:26]} Qxc5 {[%emt 0:00:16]} 50. Rd8+ {[%emt 0:01:13]} Rf8 {[%emt 0:00:03]} 51. Rxf8+ {[%emt 0:00:00]} Qxf8 {[%emt 0:00:02]} 52. Qg6 {[%emt 0:00:00]} Qc8 {[%emt 0:00:11]} 53. h5 {[%emt 0:00:26]} Qd7 {[%emt 0:00:10]} 54. h6 {[%emt 0:00:13]} a5 {[%emt 0:00:07]} 55. Bf6 {[%emt 0:01:00]} a4 {[%emt 0:00:14]} 56. hxg7 {[%emt 0:00:30]} 1-0

[Event "ITT 1st Parada Jamundi 2022"]
[Site "Jamundi Valle"]
[Date "2022.12.07"]
[Round "3.13"]
[White "Londono Lopez, Donaldo"]
[Black "Gonzalez Velasco, Leandro"]
[Result "1-0"]
[ECO "B63"]
[WhiteElo "2055"]
[BlackElo "1915"]
[Annotator "TA"]
[PlyCount "83"]
[EventDate "2022.12.05"]
[EventType "swiss"]
[EventCountry "COL"]
[SourceTitle "playchess.com"]
[Source "ChessBase"]
[SourceQuality "1"]
[TimeControl "5400+30"]

{[%evp 16,83,36,41,30,52,56,51,59,29,79,67,81,79,123,134,141,127,140,110,129,111,121,121,115,130,125,125,155,116,418,421,406,412,410,404,386,395,402,376,902,885,867,856,1075,1072,1169,1089,29974,877,868,850,907,885,914,902,1987,1942,4958,4264,6480,5635,2139,1867,29978,29979,29980,29980,29974,29975]} 1. e4 {[%emt 0:00:37]} c5 {[%emt 0:02:55]} 2. Nf3 {[%emt 0:00:26]} d6 {[%emt 0:00:09]} 3. d4 {[%emt 0:00:23]} cxd4 {[%emt 0:00:13]} 4. Nxd4 {[%emt 0:00:27]} Nf6 {[%emt 0:00:11]} 5. Nc3 {[%emt 0:00:47]} Nc6 {[%emt 0:00:18]} 6. Bg5 {[%emt 0:00:27]} e6 {[%emt 0:00:08]} 7. Qd2 {[%emt 0:00:13]} Be7 {[%emt 0:00:07]} 8. O-O-O {[%emt 0:00:32]} O-O {[%emt 0:00:17] 8...a6 might become the main line.} 9. h4 {[%emt 0:02:03]} h6 {[%emt 0:00:36] B63: Sicilian: Richter-Rauzer: 7...Be7 and unusual Black 7th moves.} 10. Nxc6 {[%emt 0:04:06]} bxc6 {[%emt 0:00:12]} 11. e5 $1 {[%emt 0:00:16]} ({Much worse is} 11. Bxf6 Bxf6 12. Qxd6 Qb6 $15) 11... dxe5 {[%emt 0:02:35] White is slightly better.} 12. Bxh6 {[%emt 0:00:56][%mdl 64] [#]} Qxd2+ {[%emt 0:08:37]} (12... gxh6 $2 13. Qxh6 Qb6 14. Rh3 $18) (12... Nd5 $11) 13. Bxd2 $16 {[%emt 0:01:01] [#]} Ng4 $146 {[%emt 0:04:17]} ({Predecessor:} 13... Nd5 14. h5 f5 15. f3 Rb8 16. Re1 Bd6 17. Nd1 Nf6 18. h6 e4 19. hxg7 Rf7 {1-0 (50) Zidu,J (2553)-Carlsen,T (2360) Remote email 2014}) 14. Ne4 {[%emt 0:12:12]} f5 {[%emt 0:01:36]} 15. f3 {[%emt 0:01:02]} Nf6 {[%emt 0:07:12][%cal Bg4f6,Bf6d5,Bd5f4,Bf4h5,Bh5g3][%mdl 32]} 16. Ng5 {[%emt 0:01:21] White is more active.} Nd5 {[%emt 0:01:22]} 17. c4 {[%emt 0:05:22]} Nf4 {[%emt 0:25:34]} 18. Re1 {[%emt 0:07:11]} Nh5 {[%emt 0:11:56]} 19. Rxe5 {[%emt 0:04:57]} Ng3 {[%emt 0:01:50]} 20. Rg1 {[%emt 0:00:49]} Bd6 {[%emt 0:03:28]} 21. Re1 {[%emt 0:01:12]} e5 {[%emt 0:01:16]} 22. Bd3 {[%emt 0:01:24]} Rd8 $2 {[%emt 0:02:59][%mdl 8192]} (22... Ba6 $16 {is a better chance.}) 23. c5 $18 {[%emt 0:05:40]} Bc7 {[%emt 0:03:57]} 24. Bc4+ {[%emt 0:00:30]} Kf8 {[%emt 0:00:18]} 25. Bc3 {[%emt 0:02:50] Inhibits Rd4.} e4 {[%emt 0:01:52]} 26. fxe4 {[%emt 0:02:17] Hoping for Nh7+.} Bf4+ {[%emt 0:00:07]} 27. Kc2 {[%emt 0:01:34] And now Nh7+ would win.} fxe4 $2 {[%emt 0:02:05] [#]} (27... Bxg5 28. hxg5 Re8 29. exf5 Rxe1 30. Rxe1 Bxf5+ 31. Kc1 Bg6) 28. Rgf1 $1 {[%emt 0:01:16][%mdl 512]} Nxf1 {[%emt 0:01:11]} 29. Rxf1 {[%emt 0:00:00]} Ke7 {[%emt 0:01:09]} 30. Rxf4 {[%emt 0:00:12]} Rf8 {[%emt 0:00:06]} 31. Rxe4+ {[%emt 0:02:01]} Kd8 {[%emt 0:00:12]} 32. Ne6+ {[%emt 0:00:25]} (32. Ba5+ $142 Kd7 33. Be6+ Ke7 34. Bxc8+ Kf6 35. Nh7+ Kf7 36. Rf4+ Ke7 37. Rxf8) 32... Bxe6 {[%emt 0:00:05]} 33. Rxe6 {[%emt 0:00:08]} Rf2+ {[%emt 0:00:05]} 34. Re2 {[%emt 0:00:12]} Rxe2+ {[%emt 0:00:07]} 35. Bxe2 {[%emt 0:00:10] This pair of bishops is nice.} Kd7 {[%emt 0:00:24]} 36. h5 {[%emt 0:00:14]} Rg8 {[%emt 0:01:01]} 37. g4 {[%emt 0:00:35][%cal Bg2g4,Bg4g5,Bg5h6,Bh6h7][%mdl 32] Intending Bc4 and mate.} Ke7 {[%emt 0:00:15]} 38. g5 {[%emt 0:00:24] h6 would kill now.} Rf8 {[%emt 0:00:25] Inhibits h6.} 39. h6 {[%emt 0:00:42]} gxh6 {[%emt 0:00:09]} 40. gxh6 {[%emt 0:00:04] White mates.} Rf2 {[%emt 0:00:06]} 41. h7 {[%emt 0:00:19]} Rxe2+ {[%emt 0:00:04]} 42. Kd3 {[%emt 0:00:14] Black got outplayed after the opening.   Weighted Error Value: White=0.09 (flawless) /Black=0.67} 1-0